bitfinex/quotes_ETHUSD_20241009
["timestamp","ask_amount","ask_price","bid_price","bid_amount"]
[1728492573557,23.43935314,2434.1,2434.0,8.43239635]
[1728492574502,23.43935314,2434.1,2434.0,7.58037432]
[1728492577106,23.43935314,2434.1,2434.0,1.35439549]
[1728492578573,22.11195984,2434.1,2434.0,14.34455101]
[1728492578763,22.11195984,2434.1,2434.0,13.36072864]
[1728492578987,22.11195984,2434.1,2434.0,14.7750419]
[1728492579206,22.11195984,2434.1,2434.0,16.44847212]
[1728492579407,22.11195984,2434.1,2434.0,12.64974928]
[1728492579891,22.11195984,2434.1,2434.0,15.46427151]
[1728492580092,22.11195984,2434.1,2434.0,16.75607796]
[1728492580310,22.11195984,2434.1,2434.0,16.44848683]
[1728492580488,22.11195984,2434.1,2434.0,17.18619875]
[1728492580990,22.11195984,2434.1,2434.0,17.18619859]
[1728492581914,22.11195984,2434.1,2434.0,15.46423502]
[1728492582131,22.11195984,2434.1,2434.0,17.18619859]
[1728492582921,22.11195984,2434.1,2434.0,17.61701761]
[1728492583124,22.11195984,2434.1,2434.0,17.18616673]
[1728492583440,22.11195984,2434.1,2434.0,15.15668038]
[1728492583599,22.11195984,2434.1,2434.0,16.44814703]
[1728492584117,22.11195984,2434.1,2434.0,15.15668038]
[1728492584316,22.11195984,2434.1,2434.0,16.44811533]
[1728492584520,22.11195984,2434.1,2434.0,16.75556483]
[1728492584828,22.11195984,2434.1,2434.0,16.44797261]
[1728492584996,22.11195984,2434.1,2434.0,16.44799115]
[1728492585631,22.11195984,2434.1,2434.0,16.01750069]
[1728492585831,22.11195984,2434.1,2434.0,16.44799115]
[1728492586415,22.11195984,2434.1,2434.0,15.15668038]
[1728492586754,22.11195984,2434.1,2434.0,16.01743473]
[1728492586957,22.11195984,2434.1,2434.0,8.35795754]
[1728492587256,22.11195984,2434.1,2434.0,7.56645754]
[1728492587550,22.11195984,2434.1,2434.0,5.46285549]
[1728492591199,22.11195984,2434.1,2434.0,10.07247833]
[1728492592589,22.11195984,2434.1,2434.0,9.26157833]
[1728492594507,22.11195984,2434.1,2434.0,10.09367833]
[1728492595411,22.11195984,2434.1,2434.0,11.3849891]
[1728492595609,22.11195984,2434.1,2434.0,12.67669721]
[1728492595815,22.11195984,2434.1,2434.0,11.81523224]
[1728492596113,22.11195984,2434.1,2434.0,13.10654301]
[1728492600103,22.11195984,2434.1,2434.0,13.96826327]
[1728492600314,22.11195984,2434.1,2434.0,12.6769525]
[1728492601119,22.11195984,2434.1,2434.0,11.8448525]
[1728492601736,22.11195984,2434.1,2434.0,7.1844094]
[1728492601945,22.11195984,2434.1,2434.0,1.35439549]
[1728492602255,22.94275984,2434.1,2434.0,1.35439549]
[1728492606081,22.11195984,2434.1,2434.0,9.26157833]
[1728492606262,22.11195984,2434.1,2434.0,5.46285549]
[1728492611004,22.11195984,2434.1,2434.0,1.35439549]
[1728492611817,26.98344984,2434.1,2434.0,1.35439549]
[1728492612026,22.87515984,2434.1,2434.0,1.35439549]
[1728492612529,22.87515984,2434.1,2434.0,9.80789688]
[1728492612530,22.11195984,2434.1,2434.0,9.80789688]
[1728492612841,22.11195984,2434.1,2434.0,1.90071404]
[1728492612974,22.11195984,2434.1,2434.0,1.35439549]
[1728492613178,22.90795984,2434.1,2434.0,1.35439549]
[1728492616942,27.01624984,2434.1,2434.0,1.35439549]
[1728492617103,30.01624984,2434.1,2434.0,1.35439549]
[1728492618449,33.81497268,2434.1,2434.0,1.35439549]
[1728492618745,34.36497268,2434.1,2434.0,1.35439549]
[1728492619037,30.56624984,2434.1,2434.0,1.35439549]
[1728492619606,30.01624984,2434.1,2434.0,1.35439549]
[1728492621447,30.01624984,2434.1,2434.0,1.35439549]
[1728492621848,27.01624984,2434.1,2434.0,1.35439549]
[1728492630359,30.81497268,2434.1,2434.0,1.35439549]
[1728492632556,28.76996406,2434.1,2434.0,1.35439549]
[1728492636632,22.90795984,2434.1,2434.0,1.35439549]
[1728492636978,22.11195984,2434.1,2434.0,1.35439549]
[1728492637501,27.01704984,2434.1,2434.0,1.35439549]
[1728492640669,26.22024984,2434.1,2434.0,1.35439549]
[1728492643103,22.11195984,2434.1,2434.0,1.35439549]
[1728492643578,26.22024984,2434.1,2434.0,1.35439549]
[1728492643740,22.11195984,2434.1,2434.0,1.35439549]
[1728492643941,22.11195984,2434.1,2434.0,1.97659404]
[1728492644155,26.22024984,2434.1,2434.0,1.97659404]
[1728492644474,22.11195984,2434.1,2434.0,1.35439549]
[1728492649757,26.22024984,2434.1,2434.0,1.35439549]
[1728492652577,28.72716406,2434.1,2434.0,1.35439549]
[1728492656987,22.11195984,2434.1,2434.0,8.04646971]
[1728492657296,22.11195984,2434.1,2434.0,7.09740246]
[1728492658037,22.11195984,2434.1,2434.0,2.98894246]
[1728492659423,22.11195984,2434.1,2434.0,1.35439549]
[1728492659992,26.22024984,2434.1,2434.0,1.35439549]
[1728492660511,27.97396406,2434.1,2434.0,1.35439549]
[1728492661019,26.22024984,2434.1,2434.0,1.35439549]
[1728492662662,27.97396406,2434.1,2434.0,1.35439549]
[1728492664241,26.22024984,2434.1,2434.0,1.35439549]
[1728492665049,22.11195984,2434.1,2434.0,3.89900971]
[1728492665251,22.11195984,2434.1,2434.0,7.05451146]
[1728492666792,22.11195984,2434.1,2434.0,2.94605146]
[1728492667086,22.11195984,2434.1,2434.0,7.05451146]
[1728492675621,22.11195984,2434.1,2434.0,8.80822568]
[1728492675831,21.52892963,2434.1,2434.0,13.84147726]
[1728492675986,18.12188782,2434.1,2434.0,14.82169293]
[1728492676187,18.12188782,2434.1,2434.0,14.86118788]
[1728492676188,2.62033873,2434.1,2434.0,14.86118788]
[1728492676424,2.62033873,2434.1,2434.0,10.91235318]
[1728492676719,2.62033873,2434.1,2434.0,14.81873196]
[1728492677026,2.62033873,2434.1,2434.0,12.35822568]
[1728492677341,2.62033873,2434.1,2434.0,12.66577408]
[1728492677485,2.62033873,2434.1,2434.0,14.81732585]
[1728492677682,2.07784673,2434.1,2434.0,12.86821097]
[1728492678125,2.07784673,2434.1,2434.0,15.01976776]
[1728492678293,2.07784673,2434.1,2434.0,12.86821097]
[1728492678626,2.07784673,2434.1,2434.0,15.01881431]
[1728492679204,2.07784673,2434.1,2434.0,13.26510009]
[1728492679432,2.07784673,2434.1,2434.0,10.30077718]
[1728492679639,2.07784673,2434.1,2434.0,2.94605146]
[1728492679793,2.07784673,2434.1,2434.0,2.15515146]
[1728492680483,2.07784673,2434.1,2434.0,1.35439549]
[1728492681746,0.8,2434.2,2434.0,1.35439549]
[1728492681747,0.8,2434.2,2434.0,5.46285549]
[1728492681886,0.8,2434.2,2434.0,1.35439549]
[1728492683043,0.8,2434.2,2434.0,5.46277549]
[1728492683527,0.8,2434.7,2434.1,4.10828]
[1728492683700,1.590695,2434.7,2434.1,4.10828]
[1728492684141,1.590695,2434.7,2434.2,4.10805]
[1728492684316,1.590695,2434.7,2434.0,2.16029549]
[1728492684317,0.8,2434.7,2434.0,2.16029549]
[1728492684501,0.8,2434.7,2434.1,4.10821]
[1728492684706,0.8,2434.7,2434.2,4.10811]
[1728492685336,0.8,2434.7,2434.1,4.10821]
[1728492685542,1.55978964,2434.7,2434.1,4.10821]
[1728492686035,1.55978964,2434.7,2434.1,8.21642]
[1728492686197,1.55978964,2434.7,2434.2,4.10811]
[1728492686597,1.55978964,2434.7,2434.3,4.10794]
[1728492686799,1.55978964,2434.7,2434.2,4.10812]
[1728492687902,1.55978964,2434.7,2434.4,4.10774]
[1728492687903,0.8,2434.7,2434.4,4.10774]
[1728492688119,0.8,2434.7,2434.5,4.1076]
[1728492688720,0.8,2434.7,2434.4,4.1077]
[1728492688721,0.8,2434.7,2434.4,4.10764]
[1728492688898,0.7604,2435.0,2434.5,4.10752]
[1728492691501,0.7604,2435.0,2434.6,4.10733]
[1728492691871,0.7604,2435.0,2434.5,4.10752]
[1728492692135,0.7604,2435.0,2434.7,4.10727]
[1728492692521,0.7604,2435.0,2434.5,4.600402]
[1728492692522,0.7726,2435.2,2435.0,4.10677]
[1728492693657,0.7726,2435.2,2434.8,4.10696]
[1728492693944,0.7726,2435.2,2434.9,4.10685]
[1728492694096,0.7726,2435.2,2434.9,4.10687]
[1728492694290,0.7726,2435.2,2434.9,8.21374]
[1728492694836,0.7726,2435.2,2434.7,4.10716]
[1728492695304,0.7726,2435.2,2434.1,12.03797883]
[1728492695305,4.10681,2435.0,2434.5,4.10752]
[1728492695508,3.0,2435.1,2434.5,4.10752]
[1728492695509,0.8182,2434.9,2434.5,4.10752]
[1728492695714,0.8182,2434.9,2434.6,4.10743]
[1728492696497,0.8182,2434.9,2434.7,4.10726]
[1728492697840,0.8182,2434.9,2434.6,4.10736]
[1728492697998,0.8182,2434.9,2434.6,8.21474]
[1728492698335,0.8182,2434.9,2434.6,4.10736]
[1728492698544,0.8182,2434.9,2434.5,4.10761]
[1728492698896,6.50817564,2434.9,2434.5,4.10761]
[1728492699102,6.50817564,2434.9,2434.0,6.24830549]
[1728492699103,4.10729,2434.7,2434.0,6.24830549]
[1728492699344,4.93325,2434.8,2434.2,4.10797]
[1728492699556,6.3753492,2434.8,2434.3,4.10785]
[1728492699858,6.3752292,2434.8,2434.3,4.10795]
[1728492700022,10.4824592,2434.8,2434.3,4.10795]
[1728492700224,4.10736,2434.7,2434.2,4.10797]
[1728492700414,0.7528,2434.6,2434.2,4.10797]
[1728492700615,0.7528,2434.6,2434.3,4.10792]
[1728492701219,0.7528,2434.6,2434.2,4.10797]
[1728492701827,0.8139,2434.8,2434.6,4.10742]
[1728492703019,0.8139,2434.8,2434.5,4.10758]
[1728492703223,0.8139,2434.8,2434.3,4.10781]
[1728492703423,0.8139,2434.8,2434.4,4.10775]
[1728492703424,7.92104,2434.8,2434.4,4.10775]
[1728492703925,0.8139,2434.8,2434.5,4.10752]
[1728492704126,0.8139,2434.8,2434.6,4.10742]
[1728492704528,4.10674,2435.1,2434.7,4.93128]
[1728492704828,4.88418,2435.0,2434.6,4.10743]
[1728492707834,4.88418,2435.0,2434.6,4.10738]
[1728492708061,0.7774,2435.0,2434.5,5.41652338]
[1728492708230,0.7732,2435.3,2434.9,4.10678]
[1728492708569,0.7732,2435.3,2435.0,4.1067]
[1728492709230,4.87947,2435.3,2434.9,4.10678]
[1728492709432,4.10647,2435.2,2434.8,4.1071]
[1728492710273,4.87947,2435.3,2434.8,9.16918923]
[1728492710476,4.87947,2435.3,2434.8,9.16907923]
[1728492711247,4.87947,2435.3,2434.8,9.16910923]
[1728492711671,4.87947,2435.3,2434.9,4.10681]
[1728492712175,0.7732,2435.3,2434.9,4.10681]
[1728492712373,4.87948,2435.3,2434.9,5.10316892]
[1728492713439,4.87948,2435.3,2434.9,4.10681]
[1728492715148,4.87948,2435.3,2434.8,4.10699]
[1728492715149,4.10646,2435.2,2434.8,4.10699]
[1728492715351,4.87958,2435.3,2434.9,4.10692]
[1728492715576,0.8271,2435.5,2435.0,4.10674]
[1728492715784,0.8271,2435.5,2435.1,4.10649]
[1728492715942,0.8271,2435.5,2435.2,4.10636]
[1728492719002,0.8271,2435.5,2435.0,0.8059]
[1728492719003,0.7804,2435.7,2435.3,4.10618]
[1728492719186,4.88608,2435.7,2435.4,0.410618]
[1728492719390,4.88608,2435.7,2435.3,4.10618]
[1728492720293,4.10583,2435.6,2435.1,4.10648]
[1728492720488,4.10583,2435.6,2435.2,4.10641]
[1728492720787,4.10583,2435.6,2435.1,4.10657]
[1728492720788,4.88243,2435.5,2435.1,4.10657]
[1728492721159,4.88243,2435.5,2435.1,5.008499]
[1728492721491,4.88243,2435.5,2435.1,9.115029]
[1728492722469,4.88243,2435.5,2435.1,9.114969]
[1728492722653,4.88243,2435.5,2435.1,5.008439]
[1728492723570,4.88241,2435.5,2435.1,5.008439]
[1728492724155,4.88241,2435.5,2435.1,9.114909]
[1728492725394,4.88241,2435.5,2435.1,5.008399]
[1728492725747,4.88241,2435.5,2435.1,9.114929]
[1728492725981,4.88241,2435.5,2435.1,5.008399]
[1728492726162,4.88241,2435.5,2435.0,0.8059]
[1728492726364,4.10667,2435.1,2434.7,0.8282]
[1728492726567,4.10701,2434.9,2434.4,8.2082]
[1728492726768,1.7523613,2434.9,2434.2,1.45299655]
[1728492727055,4.93602,2434.6,2434.2,0.62479655]
[1728492727482,0.8285,2434.6,2434.3,4.10789]
[1728492727690,4.93603,2434.6,2434.2,0.62479655]
[1728492728189,4.93603,2434.6,2434.2,4.73283655]
[1728492729063,4.93603,2434.6,2434.2,0.62479655]
[1728492729398,4.93603,2434.6,2434.2,4.73287655]
[1728492730122,0.8285,2434.6,2434.3,4.10794]
[1728492731216,4.10688,2435.0,2434.5,4.10753]
[1728492731421,4.10696,2434.9,2434.5,4.10753]
[1728492731805,4.10688,2435.0,2434.4,4.93518]
[1728492731806,4.10711,2434.8,2434.4,4.93516]
[1728492732105,4.10688,2435.0,2434.4,4.93516]
[1728492732286,4.10698,2434.9,2434.5,4.10758]
[1728492733313,4.88248,2434.9,2434.5,4.10758]
[1728492734114,4.88248,2434.9,2434.5,8.21516]
[1728492734279,4.88248,2434.9,2434.5,4.10758]
[1728492734485,0.7755,2434.9,2434.6,4.10744]
[1728492734687,1.20456328,2435.5,2434.8,0.8222]
[1728492734887,4.88146,2435.5,2435.1,4.10653]
[1728492735586,0.7755,2435.5,2435.0,4.10675]
[1728492735824,4.88146,2435.5,2435.1,4.1065]
[1728492736397,4.10578,2435.6,2435.2,4.10643]
[1728492736589,4.10578,2435.6,2435.2,4.92863]
[1728492736790,4.10578,2435.6,2435.2,5.88227178]
[1728492738234,4.10578,2435.6,2435.2,4.92863]
[1728492738935,4.88126,2435.7,2435.2,4.92863]
[1728492739162,4.10551,2435.8,2435.4,4.10606]
[1728492739305,4.88088,2435.9,2435.5,4.10584]
[1728492739509,4.88088,2435.9,2435.5,4.93524145]
[1728492739918,4.88085,2435.9,2435.5,0.82940145]
[1728492740122,4.10558,2435.8,2435.3,4.10613]
[1728492740438,4.57299969,2435.9,2435.2,0.8222]
[1728492740739,4.57299969,2435.9,2435.1,4.10646]
[1728492740740,8.98814,2435.3,2434.9,4.10694]
[1728492740954,4.10671,2435.1,2434.7,1.68228245]
[1728492741156,4.10671,2435.1,2434.7,6.83743831]
[1728492741343,4.10671,2435.1,2434.7,2.73018831]
[1728492742157,4.10669,2435.1,2434.7,6.83745831]
[1728492742562,4.10669,2435.1,2434.7,5.97737586]
[1728492742714,4.10669,2435.1,2434.7,1.87010586]
[1728492742914,4.10673,2435.1,2434.7,0.8222]
[1728492743146,4.10673,2435.1,2434.6,4.10737]
[1728492743813,4.10657,2435.2,2434.6,4.10737]
[1728492744019,4.10677,2435.0,2434.6,4.10737]
[1728492745847,4.10657,2435.2,2434.8,4.90939]
[1728492746067,4.10657,2435.2,2434.8,5.811056]
[1728492746266,4.10641,2435.3,2434.9,4.10691]
[1728492747170,4.10613,2435.4,2434.9,4.10691]
[1728492748409,8.2121,2435.5,2435.1,0.8015]
[1728492748887,4.10614,2435.4,2435.1,0.8015]
[1728492749384,4.10628,2435.3,2434.8,5.008746]
[1728492749560,4.93866,2435.2,2434.8,5.810246]
[1728492749743,4.93866,2435.2,2434.8,4.90852]
[1728492751248,4.93866,2435.2,2434.8,9.01555]
[1728492752193,0.8322,2435.2,2434.8,4.90852]
[1728492752401,0.8322,2435.2,2434.9,4.10689]
[1728492752582,8.98269,2435.4,2434.9,5.008431]
[1728492753174,4.8765,2435.4,2434.8,0.8015]
[1728492753367,4.10643,2435.2,2434.8,4.90859]
[1728492754697,4.10628,2435.3,2434.9,4.10693]
[1728492755683,4.10645,2435.2,2434.8,4.90859]
[1728492755859,4.1063,2435.3,2434.8,9.01557]
[1728492756593,4.1063,2435.3,2434.9,4.10691]
[1728492757393,8.21267,2435.3,2434.9,4.10691]
[1728492757703,4.1063,2435.3,2434.9,4.10691]
[1728492758005,4.87653,2435.4,2435.0,4.10666]
[1728492758191,4.10613,2435.4,2435.1,0.821357]
[1728492758365,4.10613,2435.4,2435.0,4.10666]
[1728492760374,4.10628,2435.3,2434.9,4.10691]
[1728492760701,4.10646,2435.2,2434.8,4.90861]
[1728492760998,4.86376,2435.2,2434.8,4.90854]
[1728492761206,0.7573,2435.2,2434.8,0.8015]
[1728492761377,4.10677,2435.0,2434.6,4.10733]
[1728492761562,4.10694,2434.9,2434.6,0.87968562]
[1728492761959,0.7573,2435.2,2434.5,0.7858]
[1728492762201,4.10719,2434.8,2434.5,0.7858]
[1728492762985,4.90821,2434.9,2434.5,0.7858]
[1728492763191,4.90821,2434.9,2434.5,4.89341]
[1728492764201,4.90821,2434.9,2434.5,0.7858]
[1728492764202,4.10713,2434.8,2434.5,0.7858]
[1728492764567,4.10713,2434.8,2434.4,4.10776]
[1728492764770,4.90821,2434.9,2434.3,4.91116]
[1728492764771,4.59869969,2434.9,2434.3,0.8033]
[1728492765075,4.10748,2434.6,2434.2,0.8033]
[1728492765431,4.10748,2434.6,2434.2,4.91142]
[1728492765717,4.90821,2434.9,2434.5,0.8033]
[1728492766029,4.90821,2434.9,2434.5,1.294396]
[1728492766678,4.90821,2434.9,2434.5,5.401966]
[1728492767294,3.0,2435.4,2434.5,5.401966]
[1728492767295,0.7661,2435.4,2434.5,1.294396]
[1728492767593,4.10664,2435.1,2434.6,4.91463]
[1728492767792,4.87297,2435.0,2434.6,4.91463]
[1728492767964,0.7661,2435.0,2434.6,4.91463]
[1728492768164,4.87295,2435.0,2434.7,0.491463]
[1728492769108,4.87295,2435.0,2434.4,4.10764]
[1728492769407,4.10697,2434.9,2434.5,4.1076]
[1728492769608,8.97987,2435.0,2434.5,4.1076]
[1728492769781,4.10697,2434.9,2434.4,4.86394]
[1728492769980,4.87295,2435.0,2434.4,4.86394]
[1728492770189,4.10711,2434.8,2434.4,4.86394]
[1728492770511,4.87295,2435.0,2434.5,0.486394]
[1728492770739,4.87295,2435.0,2434.4,4.86394]
[1728492770740,4.10694,2434.9,2434.4,4.86394]
[1728492771034,4.10714,2434.8,2434.4,4.86394]
[1728492771313,4.10762,2434.5,2434.2,0.7563]
[1728492771517,4.10761,2434.5,2434.1,4.10816]
[1728492771822,0.7971,2434.6,2434.0,6.21901549]
[1728492771823,4.90462,2434.6,2434.2,5.14082755]
[1728492772112,0.7971,2434.6,2434.2,5.14075755]
[1728492772349,4.90469,2434.6,2434.0,6.21905549]
[1728492772513,0.7971,2434.6,2434.0,6.21905549]
[1728492772809,4.10738,2434.7,2434.0,6.21905549]
[1728492773013,4.10769,2434.5,2434.1,4.10827]
[1728492774171,8.21543,2434.5,2434.0,6.21914549]
[1728492774514,4.10769,2434.5,2434.0,7.25192004]
[1728492775318,4.10769,2434.5,2434.1,4.10828]
[1728492775539,4.10769,2434.5,2434.0,7.25192004]
[1728492775723,8.21482,2434.7,2434.0,3.14347004]
[1728492775894,4.10749,2434.6,2434.2,4.1081]
[1728492776094,4.10749,2434.6,2434.1,4.10812]
[1728492776290,4.10749,2434.6,2434.1,8.21633]
[1728492776791,4.10749,2434.6,2434.2,4.10807]
[1728492777131,4.88824,2434.8,2434.4,0.8318]
[1728492777536,4.10735,2434.7,2434.4,0.8318]
[1728492777733,4.88824,2434.8,2434.4,0.8318]
[1728492778033,8.99544,2434.8,2434.4,0.8318]
[1728492778390,4.88824,2434.8,2434.4,4.93957]
[1728492778591,12.35311,2435.0,2434.6,4.10737]
[1728492778792,4.93304,2435.0,2434.5,8.21504]
[1728492779025,4.93304,2435.0,2434.5,4.1075]
[1728492779943,4.10701,2434.9,2434.5,4.1075]
[1728492780127,4.10714,2434.8,2434.4,5.94757786]
[1728492780327,4.10714,2434.8,2434.5,1.00553779]
[1728492780801,4.10701,2434.9,2434.5,1.00553779]
[1728492780802,8.2141,2434.9,2434.5,1.00553779]
[1728492781001,8.2141,2434.9,2434.4,5.01057889]
[1728492781201,4.10714,2434.8,2434.4,4.93951]
[1728492781409,4.10745,2434.6,2434.2,4.10811]
[1728492781630,0.7548,2434.7,2434.2,4.89141]
[1728492781835,4.10752,2434.6,2434.2,4.89141]
[1728492782054,4.10752,2434.6,2434.3,0.489141]
[1728492782220,8.9695,2434.7,2434.3,0.489141]
[1728492782416,4.10754,2434.6,2434.2,4.89133]
[1728492784652,4.10754,2434.6,2434.2,4.89141]
[1728492785346,4.10763,2434.5,2434.2,0.7833]
[1728492785546,4.10793,2434.4,2434.0,2.13599549]
[1728492785708,4.10763,2434.5,2434.0,2.13599549]
[1728492785932,4.10763,2434.5,2434.1,4.10828]
[1728492786598,4.86981,2434.4,2434.0,1.35439549]
[1728492786869,4.86981,2434.4,2434.0,5.46282549]
[1728492787070,0.762,2434.4,2434.0,5.46282549]
[1728492787238,0.762,2434.4,2434.0,5.46275549]
[1728492787239,4.8698,2434.4,2434.0,5.46275549]
[1728492787561,0.762,2434.4,2434.0,9.57111549]
[1728492787928,0.762,2434.4,2434.0,9.57110549]
[1728492788537,0.762,2434.4,2434.0,5.46274549]
[1728492788832,0.762,2434.4,2434.1,4.65455455]
[1728492790571,4.86983,2434.4,2434.1,0.54627455]
[1728492790771,4.86983,2434.4,2434.0,5.46284549]
[1728492791078,4.86983,2434.4,2434.0,1.35439549]
[1728492791227,4.86983,2434.4,2434.0,5.46282549]
[1728492791769,0.762,2434.4,2434.1,4.10828]
[1728492792545,4.86988,2434.4,2434.0,5.46282549]
[1728492792745,4.86988,2434.4,2434.0,9.57120549]
[1728492793380,4.86988,2434.4,2434.0,5.46277549]
[1728492793571,4.86988,2434.4,2434.0,6.79871804]
[1728492794249,0.762,2434.4,2434.1,4.10826]
[1728492794648,0.762,2434.4,2434.0,10.90710804]
[1728492795559,0.762,2434.4,2434.1,4.10827]
[1728492796665,4.86988,2434.4,2434.0,6.79875804]
[1728492797336,7.90464969,2434.8,2434.0,6.79875804]
[1728492797337,4.10765,2434.5,2434.1,6.0091098]
[1728492797541,4.10765,2434.5,2434.1,4.91838]
[1728492798676,4.10779,2434.4,2434.1,0.8101]
[1728492799333,4.10764,2434.5,2434.1,0.8101]
[1728492799534,4.10764,2434.5,2434.1,4.91836]
[1728492800283,4.10754,2434.6,2434.1,4.91836]
[1728492800441,0.7977,2434.7,2434.1,9.7874298]
[1728492800442,4.10766,2434.5,2434.1,9.7874298]
[1728492800781,4.10766,2434.5,2434.2,4.10812]
[1728492801346,4.09796,2434.5,2434.2,4.10812]
[1728492802382,4.09796,2434.5,2434.1,9.7873398]
[1728492803240,4.09796,2434.5,2434.1,5.6791398]
[1728492803883,8.20568,2434.5,2434.1,5.6791398]
[1728492804175,4.09796,2434.5,2434.1,1.5709698]
[1728492804360,4.10785,2434.4,2434.1,1.5709698]
[1728492804566,4.09796,2434.5,2434.1,5.6792498]
[1728492805260,4.09796,2434.5,2434.2,1.11420253]
[1728492806139,4.10752,2434.6,2434.2,5.22231253]
[1728492806336,4.10714,2434.8,2434.3,4.10784]
[1728492806554,0.7502,2435.0,2434.4,4.98418055]
[1728492806555,4.10701,2434.9,2434.4,4.98418055]
[1728492806754,4.1066,2435.1,2434.7,4.10725]
[1728492807043,4.10647,2435.2,2434.8,0.7943]
[1728492807869,4.10672,2435.1,2434.8,0.7943]
[1728492808082,4.10647,2435.2,2434.8,0.7943]
[1728492808385,8.21304,2435.2,2434.8,1.695192]
[1728492808598,4.1068,2435.0,2434.8,1.695192]
[1728492808798,4.106,2435.5,2434.4,4.87939]
[1728492808799,4.10718,2434.8,2434.4,4.87939]
[1728492809002,4.10733,2434.7,2434.3,4.10792]
[1728492809203,4.10733,2434.7,2434.4,1.74818525]
[1728492811298,4.10721,2434.8,2434.4,5.85589525]
[1728492811811,4.10729,2434.7,2434.3,4.10794]
[1728492812575,4.10745,2434.6,2434.2,4.87979]
[1728492813264,4.93385,2434.6,2434.2,4.87979]
[1728492813512,0.8264,2434.6,2434.1,4.10827]
[1728492813684,9.04141,2434.6,2434.2,4.1081]
[1728492814090,4.93385,2434.6,2434.2,4.1081]
[1728492814403,4.93385,2434.6,2434.2,5.1513096]
[1728492815261,9.04146,2434.6,2434.2,1.0432096]
[1728492815464,4.93385,2434.6,2434.1,4.10825]
[1728492816504,4.10762,2434.5,2434.1,4.10825]
[1728492816800,4.93385,2434.6,2434.2,4.10806]
[1728492817262,4.93385,2434.6,2434.1,4.96941056]
[1728492817466,4.10762,2434.5,2434.1,4.10825]
[1728492817709,4.10762,2434.5,2434.2,0.63238061]
[1728492817864,4.10786,2434.4,2434.0,2.21555605]
[1728492818067,4.10786,2434.4,2434.0,5.46284549]
[1728492821443,3.79678596,2434.7,2434.0,5.46284549]
[1728492821444,0.8107,2434.5,2434.0,1.35439549]
[1728492821585,4.10787,2434.4,2434.0,5.46275549]
[1728492821908,4.10787,2434.4,2434.1,1.03835755]
[1728492822111,4.10787,2434.4,2434.0,5.46275549]
[1728492823112,4.10811,2434.3,2434.0,1.35439549]
[1728492823310,4.1078,2434.4,2434.0,5.46273549]
[1728492825020,0.8107,2434.5,2434.0,5.46273549]
[1728492825327,4.91835,2434.5,2434.1,4.92242]
[1728492825486,4.91835,2434.5,2434.1,6.0470516]
[1728492827507,4.91835,2434.5,2434.1,1.9388316]
[1728492827710,4.1078,2434.4,2434.1,1.9388316]
[1728492828940,4.91835,2434.5,2434.1,6.0471116]
[1728492829639,4.10749,2434.6,2434.2,4.10812]
[1728492829947,8.21502,2434.6,2434.2,5.25908271]
[1728492830103,4.10749,2434.6,2434.2,5.25908271]
[1728492830439,1.75286851,2434.6,2434.1,0.8142]
[1728492830608,4.87829,2434.5,2434.1,0.8142]
[1728492830804,8.98603,2434.5,2434.1,0.8142]
[1728492832407,4.10779,2434.4,2434.1,0.8142]
[1728492832747,4.10779,2434.4,2434.0,5.46272549]
[1728492833249,4.10829,2434.1,2434.0,1.35439549]
[1728492833403,6.63292851,2434.2,2434.0,1.35439549]
[1728492833404,6.63290851,2434.2,2434.0,1.35439549]
[1728492833852,4.10829,2434.1,2434.0,1.35439549]
[1728492836124,4.90735,2434.3,2434.0,1.35439549]
[1728492837021,7.10787,2434.4,2434.0,6.23703549]
[1728492837220,7.10787,2434.4,2434.0,7.27159304]
[1728492837924,4.10811,2434.3,2434.0,2.12859549]
[1728492838127,8.21622,2434.3,2434.0,2.12859549]
[1728492838369,4.10817,2434.2,2434.0,2.12859549]
[1728492838746,4.10814,2434.2,2434.0,2.12859549]
[1728492839855,5.86075851,2434.4,2434.0,2.12859549]
[1728492840078,4.10796,2434.3,2434.0,2.12859549]
[1728492840590,4.10799,2434.3,2434.0,2.12859549]
[1728492841990,8.21605,2434.3,2434.0,2.12859549]
[1728492842875,4.10812,2434.2,2434.0,2.12859549]
[1728492843395,8.21608,2434.3,2434.0,2.12859549]
[1728492843892,4.10823,2434.2,2434.0,2.12859549]
[1728492844799,4.10804,2434.3,2434.0,2.12859549]
[1728492845155,8.21608,2434.3,2434.0,2.12859549]
[1728492845357,8.21611,2434.3,2434.0,2.12859549]
[1728492845677,4.10804,2434.3,2434.0,2.75231704]
[1728492846070,4.10777,2434.5,2434.0,2.75231704]
[1728492846286,4.10777,2434.5,2434.0,6.86075704]
[1728492846287,4.1078,2434.4,2434.0,6.86075704]
[1728492847989,4.10777,2434.5,2434.0,6.86075704]
[1728492848212,4.10777,2434.5,2434.2,0.791]
[1728492848623,4.10775,2434.5,2434.2,0.791]
[1728492848914,4.10781,2434.4,2434.2,0.791]
[1728492849101,4.10769,2434.5,2434.2,0.791]
[1728492849620,8.21542,2434.5,2434.2,0.791]
[1728492849790,8.21542,2434.5,2434.2,1.90031541]
[1728492850382,4.10769,2434.5,2434.2,1.90031541]
[1728492852645,4.10745,2434.6,2434.2,1.90031541]
[1728492852787,4.10763,2434.5,2434.2,0.791]
[1728492852992,4.10735,2434.7,2434.4,0.8321]
[1728492853192,4.10726,2434.8,2434.4,4.93982]
[1728492853436,4.10726,2434.8,2434.5,0.49900381]
[1728492854054,8.21449,2434.8,2434.5,0.49900381]
[1728492854657,4.10723,2434.8,2434.5,0.49900381]
[1728492854863,8.21446,2434.8,2434.5,0.49900381]
[1728492855068,4.10723,2434.8,2434.5,0.49900381]
[1728492855273,8.16447,2434.8,2434.5,0.49900381]
[1728492855852,4.05723,2434.8,2434.5,0.49900381]
[1728492856058,8.16445,2434.8,2434.5,0.49900381]
[1728492856454,4.10705,2434.9,2434.5,4.60660381]
[1728492856765,4.10712,2434.8,2434.6,1.2575752]
[1728492858639,4.10712,2434.8,2434.6,0.4688752]
[1728492858851,4.10684,2435.0,2434.7,0.7887]